Cogmind - Beta 10.2 --- EXPLORER MODE // 2021.12.11 @ 22:59:45 // Winter2019/RPGLIKE Player: PYNTER Result: Escaped! Performance ------------- Evolutions (9) 4500 Regions Visited (23) 4600 Robots Destroyed (403) 2015 Value Destroyed (20475) 20475 Prototype IDs (24) 480 Alien Tech Used (1) 200 Bonus (6205) 6205 TOTAL SCORE: 38475 Bonus ------- High Alert Combat Kills 1983 Follower Combat Kills 533 Network Hubs Disabled 200 Met Data Miner 300 Met R17 at Cetus 500 Win 3000 Friendly Fire -311 Cogmind --------- Core Integrity 1430/1500 Matter 950/950 Energy 929/950 System Corruption 0% Temperature Cool (12) Movement Treading (160) Location To Epsilon Eridani Parts ------- > --- POWER (2) -------- Cooled Deuterium Engine Particle Reactor > --- PROPULSION (6) --- High-density Centrium Heavy Treads High-density Centrium Heavy Treads High-density Centrium Heavy Treads > --- UTILITY (8) ------ Advanced Armor Integrity Analyzer Hardened Heavy Armor Plating Damper Plating Advanced Force Field Long-range Tractor Beam > --- WEAPON (6) ------- Improved KE Penetrator Improved KE Penetrator Hardcell Cannon Hardcell Cannon Core Stripper > --- INVENTORY (4) ---- Protomatter-90 Protomatter-78 Biometal Heavy Treads Peak State ------------ > --- POWER ------------ Cooled Deuterium Engine Particle Reactor > --- PROPULSION ------- High-density Centrium Heavy Treads High-density Centrium Heavy Treads High-density Centrium Heavy Treads > --- UTILITY ---------- Advanced Armor Integrity Analyzer Hardened Heavy Armor Plating Damper Plating Advanced Force Field Long-range Tractor Beam > --- WEAPON ----------- Improved KE Penetrator Improved KE Penetrator Hardcell Cannon Hardcell Cannon Core Stripper > --- INVENTORY -------- Protomatter Protomatter Biometal Heavy Treads [Rating: 177] Favorites ----------- Power Cooled Deuterium Engine Engine Cooled Deuterium Engine Power Core Light Nuclear Core Reactor Particle Reactor Propulsion Heavy Treads Treads Heavy Treads Leg Myomer Leg Wheel Compact Wheel Flight Unit Cooled Field Propulsion Drive Utility Damper Plating Device Long-range Tractor Beam Storage Medium Matter Pod Processor Advanced Targeting Computer Hackware Hacking Suite Protection Damper Plating Weapon Hardcell Cannon Energy Gun Precision Shock Rifle Energy Cannon Heavy Phase Cannon Ballistic Gun Improved KE Penetrator Ballistic Cannon Hardcell Cannon Launcher Heavy Missile Launcher Impact Weapon Core Stripper Slashing Weapon Chainsword Piercing Weapon Force Lance Build | -11 -10 -9 -8 -7 -7 -7 -6 -6 -6 -6 -5 -5 -5 -5 -4 -4 -4 -4 -4 -3 -3 -2 -1 ------- Run | Scr Mat Mat Mat Fac Was Fac Fac Low Low Dat Pro Fac Upp Upp Fac Ext Cet Arc Hub Res Qua Res Acc Slots Evolved 18 | 7 . 1 1 4 . 1 1 . . . . . . . . . . . . . 1 2 . Power 1 | . . . . 1 . . . . . . . . . . . . . . . . . . . Propulsion 5 | 1 . . 1 1 . 1 . . . . . . . . . . . . . . . 1 . Utility 7 | 4 . . . 1 . . 1 . . . . . . . . . . . . . 1 . . Weapon 5 | 2 . 1 . 1 . . . . . . . . . . . . . . . . . 1 . Parts Attached 153 | 10 10 7 13 15 22 8 15 3 6 . 1 1 2 . 6 6 3 . 5 11 3 6 . Power 19 | 1 3 1 2 2 2 . 6 . . . . . . . . . . . 1 1 . . . Engine 13 | 1 2 1 2 2 1 . 3 . . . . . . . . . . . 1 . . . . Core 2 | . 1 . . . . . 1 . . . . . . . . . . . . . . . . Reactor 4 | . . . . . 1 . 2 . . . . . . . . . . . . 1 . . . Propulsion 33 | 2 1 . 2 3 6 3 1 . . . . . 2 . 1 2 . . 2 2 1 5 . Treads 30 | 2 1 . 2 3 5 3 1 . . . . . 2 . 1 1 . . 1 2 1 5 . Leg 1 | . . . . . 1 . . . . . . . . . . . . . . . . . . Wheel 1 | . . . . . . . . . . . . . . . . 1 . . . . . . . Hover . | . . . . . . . . . . . . . . . . . . . . . . . . Flight 1 | . . . . . . . . . . . . . . . . . . . 1 . . . . Utility 46 | 4 1 3 7 4 6 2 4 . 5 . . . . . . . . . 1 8 1 . . Device 21 | 1 . 1 4 2 2 . 2 . 3 . . . . . . . . . . 5 1 . . Storage 1 | . . . . . 1 . . . . . . . . . . . . . . . . . . Processor 14 | 1 1 . 2 2 1 2 1 . 1 . . . . . . . . . . 3 . . . Hackware 2 | . . 2 . . . . . . . . . . . . . . . . . . . . . Protection 8 | 2 . . 1 . 2 . 1 . 1 . . . . . . . . . 1 . . . . Artifact . | . . . . . . . . . . . . . . . . . . . . . . . . Weapon 55 | 3 5 3 2 6 8 3 4 3 1 . 1 1 . . 5 4 3 . 1 . 1 1 . Energy Gun 6 | 1 . 1 . . . 1 3 . . . . . . . . . . . . . . . . Energy Cannon 2 | . . . . . 2 . . . . . . . . . . . . . . . . . . Ballistic Gun 33 | 2 5 2 2 5 5 2 . 3 1 . . . . . 2 1 2 . 1 . . . . Ballistic Cannon 7 | . . . . . . . 1 . . . 1 . . . 1 3 . . . . . 1 . Launcher 1 | . . . . . 1 . . . . . . . . . . . . . . . . . . Special Weapon . | . . . . . . . . . . . . . . . . . . . . . . . . Impact Weapon 2 | . . . . 1 . . . . . . . . . . . . . . . . 1 . . Slashing Weapon 1 | . . . . . . . . . . . . 1 . . . . . . . . . . . Piercing Weapon 3 | . . . . . . . . . . . . . . . 2 . 1 . . . . . . Special Melee Weapon . | . . . . . . . . . . . . . . . . . . . . . . . . Unidentified Prototypes 13 | . . 1 . 1 . 1 3 . 1 . . . . . . . 1 . 1 3 . 1 . Parts Lost 6 | . . . . . 6 . . . . . . . . . . . . . . . . . . Power 1 | . . . . . 1 . . . . . . . . . . . . . . . . . . Propulsion 3 | . . . . . 3 . . . . . . . . . . . . . . . . . . Utility 1 | . . . . . 1 . . . . . . . . . . . . . . . . . . Weapon 1 | . . . . . 1 . . . . . . . . . . . . . . . . . . Highest Loss Streak 4 | . . . . . 4 . . . . . . . . . . . . . . . . . . Average Slot Usage (%) 81 | . 98 100 98 99 72 80 84 83 84 84 84 84 84 84 84 84 84 84 78 73 74 66 68 Engine 7 | . 6 8 7 10 4 5 7 10 10 10 10 10 10 10 10 10 10 10 9 5 5 4 4 Reactor 1 | . . . . . 2 5 2 . . . . . . . . . . . . 4 5 4 4 Treads 18 | . 17 17 21 23 14 19 21 21 21 21 21 21 21 21 21 21 21 21 21 15 15 13 13 Device 9 | . 9 8 13 19 14 1 7 10 10 10 10 10 10 10 10 10 10 10 10 5 10 9 9 Processor 6 | . 17 10 9 12 11 14 7 5 5 5 5 5 5 5 5 5 5 5 . 4 5 4 4 Protection 9 | . 18 10 7 2 1 5 9 10 10 10 10 10 10 10 10 10 10 10 10 10 10 9 9 Ballistic Gun 14 | . 22 28 30 26 10 14 15 19 21 21 17 14 10 10 7 10 10 10 10 10 10 9 9 Ballistic Cannon 6 | . . . . . . . 1 5 5 5 8 10 10 10 13 14 14 10 10 10 9 4 9 Piercing Weapon 1 | . . . . . . . . . . . . . . . 3 . . 5 5 5 4 . . Naked Turns . | . . . . . . . . . . . . . . . . . . . . . . . . Heaviest Build 152 | 14 16 18 25 40 92 95 105 105 113 113 119 119 119 119 129 129 131 129 141 147 148 152 152 Greatest Support 275 | 40 40 40 60 88 118 138 146 151 151 151 151 151 161 161 163 163 163 163 163 180 180 275 275 Greatest Overweight (x) 1 | . . . . . 1 . . . . . . . . . . 1 . . . 1 . . . Average Overweight (x) . | . . . . . . . . . . . . . . . . . . . . . . . . Largest Inventory Capacity 4 | . . 4 4 4 4 4 4 4 4 4 4 4 4 4 4 4 4 4 4 4 4 4 4 Average Capacity 3 | . . 3 4 4 4 4 4 4 4 4 4 4 4 4 4 4 4 4 4 4 4 4 4 Most Carried 4 | . . 4 4 4 4 4 4 4 4 4 4 4 4 4 4 4 4 4 4 4 4 4 4 Average Carried 3 | . . 3 3 3 3 2 3 4 3 4 4 4 4 4 3 3 3 4 3 3 3 3 3 Final Capacity 4 | . . 4 4 4 4 4 4 4 4 4 4 4 4 4 4 4 4 4 4 4 4 4 4 Final Carried 4 | . . 4 4 4 1 4 4 4 4 4 4 4 4 4 4 4 4 4 4 4 4 3 4 Class Distribution -------------------- 30% | Scavenger-Tank 23% | Hacker-Tank 14% | Hacker-Gladiator 9% | Hacker-Gunner 6% | Scavenger-Gunner 6% | Hacker-Skirmisher 3% | Scavenger-Assassin Dominant Class ---------------- Hacker-Gunner | -10/Materials Hacker-Skirmisher | -9/Materials Hacker-Skirmisher | -8/Materials Scavenger-Gunner | -7/Factory Scavenger-Gunner | -7/Waste Scavenger-Gunner | -7/Factory Hacker-Tank | -6/Factory Hacker-Tank | -6/Lower Caves Hacker-Tank | -6/Lower Caves Hacker-Tank | -6/Data Miner Hacker-Tank | -5/Proximity Caves Hacker-Tank | -5/Factory Hacker-Tank | -5/Upper Caves Commander-Tank | -5/Upper Caves Scavenger-Tank | -4/Factory Scavenger-Tank | -4/Extension Scavenger-Tank | -4/Cetus Scavenger-Tank | -4/Archives Scavenger-Tank | -4/Hub_04(d) Scavenger-Tank | -3/Research Hacker-Mutant | -3/Quarantine Hacker-Gladiator | -2/Research Hacker-Gladiator | -1/Access Resources | -11 -10 -9 -8 -7 -7 -7 -6 -6 -6 -6 -5 -5 -5 -5 -4 -4 -4 -4 -4 -3 -3 -2 -1 ----------- Run | Scr Mat Mat Mat Fac Was Fac Fac Low Low Dat Pro Fac Upp Upp Fac Ext Cet Arc Hub Res Qua Res Acc Matter Collected 13567 | 248 177 476 454 277 521 208 315 419 779 . 160 228 488 39 431 2078 1339 348 794 752 378 623 2035 Remotely 11129 | . . . 204 277 294 . 315 419 679 . 160 228 488 39 431 2078 1339 348 794 . 378 623 2035 Salvage Created 15760 | . 375 741 609 277 . 276 277 277 632 . 132 238 38 . 374 1670 768 497 1450 1499 687 1936 3007 Parts 799 | . 28 52 29 20 1 24 19 29 14 . 6 14 27 . 14 92 42 10 63 110 35 40 130 Haulers Intercepted 4 | . . . . . . 1 . . 1 . . . . . . . . . 1 . . . 1 Recyclers Shooed 8 | . . . 1 . . . 2 . . . . 1 . . . 1 . . . . . 1 2 Parts Field Recycled . | . . . . . . . . . . . . . . . . . . . . . . . . Retrieved Matter . | . . . . . . . . . . . . . . . . . . . . . . . . Parts Self-Destructed . | . . . . . . . . . . . . . . . . . . . . . . . . Prevented . | . . . . . . . . . . . . . . . . . . . . . . . . Kills | -11 -10 -9 -8 -7 -7 -7 -6 -6 -6 -6 -5 -5 -5 -5 -4 -4 -4 -4 -4 -3 -3 -2 -1 ------- Run | Scr Mat Mat Mat Fac Was Fac Fac Low Low Dat Pro Fac Upp Upp Fac Ext Cet Arc Hub Res Qua Res Acc Combat Hostiles Destroyed 308 | . 7 12 8 7 1 7 7 12 15 . 6 6 10 . 4 30 27 4 20 31 13 23 58 Melee 54 | . . . . 1 . . . 5 1 . . 1 1 . . 1 3 1 4 19 7 1 9 Guns 145 | . 7 12 8 6 . 4 5 5 12 . 4 4 6 . 1 14 16 1 9 5 1 6 19 Cannons 95 | . . . . . 1 3 2 2 2 . 2 1 3 . 3 15 8 2 7 7 5 8 24 Classes Destroyed 21 | . 5 3 2 2 1 1 1 1 1 . 1 . 1 . . . 1 . . . . . 1 Worker 23 | . 1 4 1 . . 1 . . . . . 2 . . . 3 . . 2 4 . 1 4 Builder 17 | . 1 1 . 1 . 2 . . . . . . . . . 6 . . 2 2 . . 2 Tunneler 2 | . 1 . . . . . . . . . . 1 . . . . . . . . . . . Hauler 4 | . . . . . . 1 . . 1 . . . . . . . . . 1 . . . 1 Recycler 10 | . . 1 1 . . . . . . . . . . . 1 4 . . 1 1 . . 1 Carrier 1 | . . . . . . . . . . . . . . . . . 1 . . . . . . Minesweeper 2 | . . . . . . . . 1 . . 1 . . . . . . . . . . . . Mechanic 1 | . . . . . . . . . . . . . . . . . . . . . . . 1 Operator 6 | . . . . . . . 1 . . . . . . . . 1 . 2 1 . . 1 . Watcher 36 | . 3 3 3 3 . . . . . . . 1 . . 4 3 2 . 2 5 . 2 5 Swarmer 84 | . . 2 . 2 . 3 2 6 2 . 3 2 7 . . 8 11 . 4 16 3 . 13 Grunt 83 | . 7 4 4 1 . 1 2 4 5 . . 1 . . 1 13 2 . 7 . 5 11 15 Brawler 8 | . . . . 1 . . 1 1 . . . 1 1 . . . . . 1 . . 2 . Duelist 9 | . . . 1 . . . . . . . . 1 . . . 2 . . . . 1 1 3 Sentry 33 | . . 6 2 1 . 1 2 1 . . . 1 . . . 1 . 4 4 4 . 1 5 Hunter 29 | . . . 1 . . 1 . . . . . . . . 2 5 6 . 2 3 . 2 7 Programmer 38 | . . . . 2 . 1 . . . . 2 . . . 1 . . . 2 7 4 5 14 Behemoth 6 | . . . . . . . . . . . 1 . 1 . . 1 . . . 1 . 1 1 Compactor 1 | . . . . . 1 . . . . . . . . . . . . . . . . . . Cetus Guard 8 | . . . . . . . . . . . . . . . . . 8 . . . . . . Assembled 8 | . . . . . . . . . 8 . . . . . . . . . . . . . . Thug 1 | . . . . . . . . . . . . . . . 1 . . . . . . . . Mutant 1 | . . . . . . . . . . . . . 1 . . . . . . . . . . Best Kill Streak 16 | . 4 7 2 2 1 4 3 5 6 . 3 5 4 . 4 12 9 4 10 9 6 5 16 Combat Bots Only 12 | . 4 3 2 2 1 4 3 5 6 . 3 4 4 . 3 7 8 3 9 4 6 4 12 Max Kills in Single Turn 3 | . 1 1 1 1 1 2 1 1 2 . 1 1 1 . 1 3 2 2 2 2 1 1 3 Gunslinging . | . . . . . . . . . . . . . . . . . . . . . . . . Exploded . | . . . . . . . . . . . . . . . . . . . . . . . . Melee 1 | . . . . 1 . . . 1 1 . . 1 1 . . 1 1 1 1 1 1 1 1 Uniques/NPCs Destroyed . | . . . . . . . . . . . . . . . . . . . . . . . . Combat | -11 -10 -9 -8 -7 -7 -7 -6 -6 -6 -6 -5 -5 -5 -5 -4 -4 -4 -4 -4 -3 -3 -2 -1 -------- Run | Scr Mat Mat Mat Fac Was Fac Fac Low Low Dat Pro Fac Upp Upp Fac Ext Cet Arc Hub Res Qua Res Acc Damage Taken 8828 | . 312 418 410 356 227 137 227 387 257 . 147 208 135 . 29 470 678 178 474 454 252 1059 2013 Core 4985 | . 182 310 266 244 190 71 125 214 129 . 75 129 71 . 15 266 357 87 255 236 119 568 1076 Absorbed by Shields 6339 | . . . . 84 22 . 31 160 105 . 157 222 157 . 31 539 770 191 534 512 291 675 1858 Reduced by Siege Mode 87 | . . . . . . . . . . . 1 . . . . . 4 . . 5 9 . 68 Redirected to Core 4544 | . 164 220 253 212 130 64 125 195 121 . 75 129 65 . 15 239 339 81 251 218 115 529 1004 Core Remaining (%) 95 | 100 86 80 90 . . 100 . . . . 97 . . 100 . . . . 99 . 100 100 95 Volleys Fired 586 | . 22 41 26 21 11 13 20 16 17 . 16 13 11 . 14 66 53 9 34 34 11 44 94 Largest 5 | . 3 4 4 5 3 5 5 5 5 . 5 5 4 . 5 5 5 4 4 4 4 3 4 Hottest 247 | . 90 83 86 114 79 247 205 142 144 . 178 178 153 . 216 230 235 200 200 200 200 135 200 Shots Fired 2312 | . 66 126 104 99 17 48 56 80 85 . 80 65 44 . 58 316 237 36 135 136 44 114 366 Gun 1407 | . 66 126 104 99 12 35 47 64 68 . 53 39 22 . 16 128 99 18 67 68 22 75 179 Cannon 905 | . . . . . 5 13 9 16 17 . 27 26 22 . 42 188 138 18 68 68 22 39 187 Launcher . | . . . . . . . . . . . . . . . . . . . . . . . . Special . | . . . . . . . . . . . . . . . . . . . . . . . . Kinetic 2260 | . 47 126 104 99 12 34 42 80 85 . 80 65 44 . 58 316 237 36 135 136 44 114 366 Thermal 39 | . 19 . . . 5 13 2 . . . . . . . . . . . . . . . . Explosive . | . . . . . . . . . . . . . . . . . . . . . . . . Electromagnetic 13 | . . . . . . 1 12 . . . . . . . . . . . . . . . . Robot Hit Streak 108 | . 20 32 26 18 31 45 24 31 77 . 108 21 20 . 62 73 97 11 38 58 14 34 47 Robot Miss Streak 2 | . 1 2 2 1 . 2 1 1 . . 2 1 1 . . 1 1 1 1 1 1 2 1 Penetration Max 1 | . . . . . . 1 1 . 1 . 1 . . . . 1 1 1 1 1 1 1 1 Secondary Targets 4 | . . 1 1 1 . . 1 . . . . . . . . . . . . . . . . Max Gunslinging Chain 1 | . . 1 1 1 . . 1 . . . . . . . . . . . . . . . . Shots Hit Robots 1886 | . 49 92 88 85 17 25 46 56 61 . 62 44 32 . 43 223 187 28 105 158 45 123 317 Core Hits 751 | . 28 33 32 26 2 19 18 21 32 . 13 24 15 . 18 95 64 14 44 65 23 38 127 Critical Hits 146 | . . 3 . . 1 1 1 3 3 . 1 1 1 . 2 12 14 5 17 23 7 14 37 Critical Kills 50 | . . . . . . 1 . 1 3 . . . 1 . . 6 5 3 9 6 2 2 11 Critical Parts Destroyed 85 | . . 3 . . . . 1 2 . . 1 1 . . 2 5 7 2 8 16 5 11 21 Melee Attacks 188 | . . . . 13 . . . . . . . . 6 . 1 13 4 3 16 61 11 22 38 Kinetic 62 | . . . . . . . . . . . . . . . . . . . . . 2 22 38 Impact 13 | . . . . 13 . . . . . . . . . . . . . . . . . . . Slashing 6 | . . . . . . . . . . . . . 6 . . . . . . . . . . Piercing 107 | . . . . . . . . . . . . . . . 1 13 4 3 16 61 9 . . Sneak Attacks 15 | . . . . 1 . . . . . . . . . . 1 3 . 1 2 3 . 1 3 Combat Hostiles . | . . . . . . . . . . . . . . . . . . . . . . . . Follow-up Attacks . | . . . . . . . . . . . . . . . . . . . . . . . . Damage Inflicted 60357 | . 634 1131 1144 1361 358 915 1117 1293 1193 . 1609 1370 992 . 1994 7516 6662 1165 4258 6528 1940 4526 12651 Guns 27335 | . 491 1131 1144 907 221 464 759 833 986 . 905 660 417 . 404 2964 2686 475 1634 2260 716 2108 5170 Cannons 23281 | . . . . . 137 246 325 338 185 . 648 526 381 . 1043 3704 3798 508 1811 2098 784 1369 5380 Explosions 790 | . 143 . . . . 195 . . . . . 32 . . 340 . . . 80 . . . . Melee 8352 | . . . . 453 . . . . . . . . 194 . 174 735 155 182 733 2170 440 1049 2067 Ramming 599 | . . . . 1 . 10 33 122 22 . 56 152 . . 33 113 23 . . . . . 34 Kinetic 52996 | . 256 1131 1144 907 221 464 849 1171 1171 . 1553 1186 798 . 1447 6668 6484 983 3445 4358 1617 4526 12617 Thermal 1193 | . 235 . . . 137 441 40 . . . . . . . 340 . . . . . . . . Explosive 143 | . 143 . . . . . . . . . . . . . . . . . . . . . . Electromagnetic 307 | . . . . . . . 195 . . . . 32 . . . . . . 80 . . . . Impact 453 | . . . . 453 . . . . . . . . . . . . . . . . . . . Slashing 194 | . . . . . . . . . . . . . 194 . . . . . . . . . . Piercing 4472 | . . . . . . . . . . . . . . . 174 735 155 182 733 2170 323 . . Highest Corruption 1 | . . . . 1 1 1 . . . . . . . . . . . . . . . . . Average Corruption 1 | . . . . 1 1 1 . . . . . . . . . . . . . . . . . Corruption Purged . | . . . . . . . . . . . . . . . . . . . . . . . . Effects 14 | . . . . 2 7 5 . . . . . . . . . . . . . . . . . Message Errors 8 | . . . . . 6 2 . . . . . . . . . . . . . . . . . Energy Discharges 2 | . . . . 1 1 . . . . . . . . . . . . . . . . . . Data Loss (minor) 1 | . . . . . . 1 . . . . . . . . . . . . . . . . . Targeting Errors 2 | . . . . 1 . 1 . . . . . . . . . . . . . . . . . Weapon Failures 1 | . . . . . . 1 . . . . . . . . . . . . . . . . . Overload Shots . | . . . . . . . . . . . . . . . . . . . . . . . . Overflow Damage 2077 | . 6 . . 42 . 50 . . 4 . 9 64 25 . 290 353 63 70 65 322 71 77 566 Projectiles 986 | . . . . . . 14 . . 4 . 9 64 25 . 100 286 63 . 65 40 71 28 217 Explosions 84 | . 6 . . . . 36 . . . . . . . . 42 . . . . . . . . Melee 1007 | . . . . 42 . . . . . . . . . . 148 67 . 70 . 282 . 49 349 Knockbacks 127 | . . . . 2 . . . 3 . . 2 2 1 . 4 30 11 . 15 . 8 11 38 Impact 5 | . . . . 2 . . . 1 . . . . . . . 2 . . . . . . . Kinetic 117 | . . . . . . . . 2 . . 2 2 1 . 4 27 11 . 14 . 8 11 35 Secondary 5 | . . . . . . . . . . . . . . . . 1 . . 1 . . . 3 Self-Inflicted Damage 91 | . 65 . . . . . . . . . . . . . 26 . . . . . . . . Shots 3 | . 1 . . . . . . . . . . . . . 2 . . . . . . . . Rammed 47 | . . . . . . . 5 9 2 . 2 16 . . 2 4 3 . . . . . 4 Targets Rammed 58 | . . . . 1 . 1 5 13 2 . 3 19 . . 2 4 3 . . . . . 5 Kicked . | . . . . . . . . . . . . . . . . . . . . . . . . Crushed 11 | . . . . 1 . 1 . 4 . . 1 3 . . . . . . . . . . 1 Highest Temperature 378 | . 378 . . . . 233 107 6 189 . 42 36 . . 66 86 82 18 48 180 . 80 300 Average Temperature 60 | . 141 . . . . 97 30 4 29 . 19 15 . . 27 34 31 7 15 58 . 29 86 Received Heat Transfer 2301 | . 234 213 189 126 . 21 86 147 145 . 28 20 18 . . 78 31 68 112 28 136 401 220 Effects 1 | . 1 . . . . . . . . . . . . . . . . . . . . . . Damage (minor) 1 | . 1 . . . . . . . . . . . . . . . . . . . . . . Siege Activations 12 | . . . . . 1 . . . . . 1 . . . . 1 3 . . 2 1 1 2 Total Turns 382 | . . . . . 1 . . . . . 21 . . . . 8 89 . . 55 35 16 157 Longest Duration 84 | . . . . . 1 . . . . . 21 . . . . 8 41 . . 54 35 16 84 Robots Corrupted . | . . . . . . . . . . . . . . . . . . . . . . . . Combat Hostiles . | . . . . . . . . . . . . . . . . . . . . . . . . Parts Fried 3 | . . . . 1 . . . . . . . . . . . 2 . . . . . . . Impact Corruptions 7 | . . . . 4 . . . . . . . . . . 1 1 . . 1 . . . . Robots Melted . | . . . . . . . . . . . . . . . . . . . . . . . . Combat Hostiles . | . . . . . . . . . . . . . . . . . . . . . . . . Parts Melted 4 | . . . . . . 1 . . . . . . . . . . . . 1 . . . 2 Heat Transferred 1558 | . 703 . . . 185 396 74 . . . . . . . 200 . . . . . . . . Parts Sabotaged 2 | . . . . . . . . . . . . . . . . . . . 2 . . . . Parts Stolen . | . . . . . . . . . . . . . . . . . . . . . . . . Parts Stripped . | . . . . . . . . . . . . . . . . . . . . . . . . Power Chain Reactions . | . . . . . . . . . . . . . . . . . . . . . . . . Missiles Intercepted . | . . . . . . . . . . . . . . . . . . . . . . . . Alert | -11 -10 -9 -8 -7 -7 -7 -6 -6 -6 -6 -5 -5 -5 -5 -4 -4 -4 -4 -4 -3 -3 -2 -1 ------- Run | Scr Mat Mat Mat Fac Was Fac Fac Low Low Dat Pro Fac Upp Upp Fac Ext Cet Arc Hub Res Qua Res Acc Peak Influence 1121 | . 166 369 274 224 12 218 151 . . . . 280 . . 390 512 363 215 947 505 354 687 1121 Initial 369 | . . 9 29 33 12 . . . . . . 45 . . 18 28 56 37 51 369 172 43 198 Average 222 | . 29 121 115 69 2 25 62 . . . . 128 . . 141 198 184 179 376 272 186 403 654 Maximum Alert Level 4 | . . 1 1 1 . 1 . . . . . 1 . . 1 2 1 1 3 2 1 2 4 Low Security (%) 58 | 100 100 80 78 95 100 95 100 . . . . 76 . . 69 59 45 27 35 27 59 21 4 Level 1 23 | . . 19 21 4 . 4 . . . . . 23 . . 30 26 54 72 24 57 40 10 19 Level 2 12 | . . . . . . . . . . . . . . . . 14 . . 31 14 . 68 26 Level 3 4 | . . . . . . . . . . . . . . . . . . . 8 . . . 39 Level 4 1 | . . . . . . . . . . . . . . . . . . . . . . . 9 Level 5 . | . . . . . . . . . . . . . . . . . . . . . . . . High Security . | . . . . . . . . . . . . . . . . . . . . . . . . Max Security . | . . . . . . . . . . . . . . . . . . . . . . . . Squads Dispatched 43 | . . 2 1 3 . 2 . . . . . . . . 4 4 1 . 5 4 2 4 11 Investigation 5 | . . . . . . . . . . . . . . . . 3 1 . . . . 1 . Extermination 13 | . . . . 2 . 1 . . . . . . . . . . . . 1 3 2 1 3 Reinforcement 13 | . . 2 1 1 . 1 . . . . . . . . 2 1 . . 1 . . 1 3 Assault 7 | . . . . . . . . . . . . . . . 1 . . . 2 1 . 1 2 Garrison 5 | . . . . . . . . . . . . . . . 1 . . . 1 . . . 3 Intercept . | . . . . . . . . . . . . . . . . . . . . . . . . Construction Impeded 3 | . . . . . . . . . . . . . . . 1 . . . 1 . . . 1 Haulers Reinforced 1 | . . . . . . 1 . . . . . . . . . . . . . . . . . Stealth | -11 -10 -9 -8 -7 -7 -7 -6 -6 -6 -6 -5 -5 -5 -5 -4 -4 -4 -4 -4 -3 -3 -2 -1 --------- Run | Scr Mat Mat Mat Fac Was Fac Fac Low Low Dat Pro Fac Upp Upp Fac Ext Cet Arc Hub Res Qua Res Acc Distress Signals 19 | . 1 2 2 . . 1 . . . . . . . . . . 2 . 2 1 . 3 5 Communications Jammed . | . . . . . . . . . . . . . . . . . . . . . . . . Distress Signals . | . . . . . . . . . . . . . . . . . . . . . . . . Times Spotted 443 | . 10 23 18 14 1 10 8 12 15 . 7 7 11 . 9 45 25 9 34 50 17 39 79 Peak Tracking Total 8 | . 5 3 4 2 1 3 3 5 5 . 4 4 3 . 2 5 7 3 8 6 6 7 8 Tactical Retreats 18 | . . 2 . 1 . . . . . . . . . . . . . . 1 8 . 2 4 Traps | -11 -10 -9 -8 -7 -7 -7 -6 -6 -6 -6 -5 -5 -5 -5 -4 -4 -4 -4 -4 -3 -3 -2 -1 ------- Run | Scr Mat Mat Mat Fac Was Fac Fac Low Low Dat Pro Fac Upp Upp Fac Ext Cet Arc Hub Res Qua Res Acc Traps Triggered 15 | . 1 1 1 1 . . 1 . . . . 3 . . 1 2 . . 2 . . 2 . Indirectly 1 | . . . . . . . . . . . . 1 . . . . . . . . . . . Trap Hack Attempts . | . . . . . . . . . . . . . . . . . . . . . . . . Triggered . | . . . . . . . . . . . . . . . . . . . . . . . . Disarmed . | . . . . . . . . . . . . . . . . . . . . . . . . Reprogrammed . | . . . . . . . . . . . . . . . . . . . . . . . . Reused . | . . . . . . . . . . . . . . . . . . . . . . . . Traps Extracted . | . . . . . . . . . . . . . . . . . . . . . . . . Installed . | . . . . . . . . . . . . . . . . . . . . . . . . Triggered 1 | . . . . . . . . 1 . . . . . . . . . . . . . . . Machines | -11 -10 -9 -8 -7 -7 -7 -6 -6 -6 -6 -5 -5 -5 -5 -4 -4 -4 -4 -4 -3 -3 -2 -1 ---------- Run | Scr Mat Mat Mat Fac Was Fac Fac Low Low Dat Pro Fac Upp Upp Fac Ext Cet Arc Hub Res Qua Res Acc Machines Disabled 65 | . 1 . . . . 5 . . . . . 9 1 . 5 3 4 1 22 . 4 3 7 Max in Single Turn 11 | . 1 . . . . 5 . . . . . 4 1 . 5 1 1 1 11 . 1 1 2 Garrison Access 5 | . . . . . . . . . . . . . . . 1 . . . 1 1 . 1 1 Network Hub 1 | . . . . . . . . . . . . . . . . . . . 1 . . . . Machines Sabotaged . | . . . . . . . . . . . . . . . . . . . . . . . . Garrisons Compromised . | . . . . . . . . . . . . . . . . . . . . . . . . Overloaded Fab Kills . | . . . . . . . . . . . . . . . . . . . . . . . . Fab Network Shutdowns . | . . . . . . . . . . . . . . . . . . . . . . . . Hacking | -11 -10 -9 -8 -7 -7 -7 -6 -6 -6 -6 -5 -5 -5 -5 -4 -4 -4 -4 -4 -3 -3 -2 -1 --------- Run | Scr Mat Mat Mat Fac Was Fac Fac Low Low Dat Pro Fac Upp Upp Fac Ext Cet Arc Hub Res Qua Res Acc Machines Accessed 25 | . 1 . . . . . . . . 4 . 1 . . . 2 3 1 4 4 3 . 2 Terminals 14 | . 1 . . . . . . . . . . . . . . 2 3 . 4 1 2 . 1 Fabricators 1 | . . . . . . . . . . . . 1 . . . . . . . . . . . Repair Stations 1 | . . . . . . . . . . . . . . . . . . . . 1 . . . Recycling Units 1 | . . . . . . . . . . . . . . . . . . . . 1 . . . Scanalyzers 1 | . . . . . . . . . . . . . . . . . . . . . 1 . . Garrison Access 2 | . . . . . . . . . . . . . . . . . . . . 1 . . 1 Total Hacks 101 | . 4 . . . . . . . . 23 . 2 . . . 8 7 25 6 10 12 . 4 Successful 84 | . 4 . . . . . . . . 23 . 2 . . . 3 7 25 5 6 7 . 2 Failed 17 | . . . . . . . . . . . . . . . . 5 . . 1 4 5 . 2 Catastrophic 2 | . . . . . . . . . . . . . . . . 2 . . . . . . . Database Lockouts . | . . . . . . . . . . . . . . . . . . . . . . . . Manual 9 | . . . . . . . . . . . . . . . . . 2 1 4 1 . . 1 Terminals 40 | . 4 . . . . . . . . . . . . . . 8 7 . 6 4 10 . 1 Fabricators 2 | . . . . . . . . . . . . 2 . . . . . . . . . . . Repair Stations 3 | . . . . . . . . . . . . . . . . . . . . 3 . . . Recycling Units 1 | . . . . . . . . . . . . . . . . . . . . 1 . . . Scanalyzers 2 | . . . . . . . . . . . . . . . . . . . . . 2 . . Garrison Access 5 | . . . . . . . . . . . . . . . . . . . . 2 . . 3 Terminal Hacks 73 | . 4 . . . . . . . . 23 . . . . . 3 7 25 2 3 5 . 1 Record 50 | . 1 . . . . . . . . 11 . . . . . . 6 25 2 3 2 . . Part Schematic 4 | . . . . . . . . . . 4 . . . . . . . . . . . . . Robot Schematic 5 | . . . . . . . . . . 5 . . . . . . . . . . . . . Robot Analysis 1 | . . . . . . . . . . . . . . . . 1 . . . . . . . Prototype ID Bank 4 | . . . . . . . . . . 3 . . . . . 1 . . . . . . . Open Door 2 | . . . . . . . . . . . . . . . . . 1 . . . . . 1 Emergency Access Points 1 | . . . . . . . . . . . . . . . . . . . . . 1 . . Alert Level 2 | . 2 . . . . . . . . . . . . . . . . . . . . . . Unreport Threat 2 | . 1 . . . . . . . . . . . . . . . . . . . 1 . . Recall Assault 1 | . . . . . . . . . . . . . . . . 1 . . . . . . . Zone Layout 1 | . . . . . . . . . . . . . . . . . . . . . 1 . . Fabricator Hacks 2 | . . . . . . . . . . . . 2 . . . . . . . . . . . Load Schematic 1 | . . . . . . . . . . . . 1 . . . . . . . . . . . Build 1 | . . . . . . . . . . . . 1 . . . . . . . . . . . Repair Station Hacks 1 | . . . . . . . . . . . . . . . . . . . . 1 . . . Scan Component 1 | . . . . . . . . . . . . . . . . . . . . 1 . . . Recycling Unit Hacks 1 | . . . . . . . . . . . . . . . . . . . . 1 . . . Report Inventory 1 | . . . . . . . . . . . . . . . . . . . . 1 . . . Scanalyzer 2 | . . . . . . . . . . . . . . . . . . . . . 2 . . Insert Component 2 | . . . . . . . . . . . . . . . . . . . . . 2 . . Garrison Access Hacks 2 | . . . . . . . . . . . . . . . . . . . . 1 . . 1 Seal Access 2 | . . . . . . . . . . . . . . . . . . . . 1 . . 1 Unauthorized Hacks 3 | . . . . . . . . . . . . . . . . . . . 3 . . . . Terminals 3 | . . . . . . . . . . . . . . . . . . . 3 . . . . Assimilate 3 | . . . . . . . . . . . . . . . . . . . 3 . . . . Fabricators . | . . . . . . . . . . . . . . . . . . . . . . . . Repair Stations . | . . . . . . . . . . . . . . . . . . . . . . . . Recycling Units . | . . . . . . . . . . . . . . . . . . . . . . . . Scanalyzers . | . . . . . . . . . . . . . . . . . . . . . . . . Garrison Access . | . . . . . . . . . . . . . . . . . . . . . . . . Data Cores Recovered 1 | . . . . . . . 1 . . . . . . . . . . . . . . . . Used . | . . . . . . . . . . . . . . . . . . . . . . . . Hacking Detections 14 | . 1 . . . . . . . . . . 1 . . . 2 1 . 3 3 2 . 1 Full Trace Events 3 | . . . . . . . . . . . . . . . . 2 1 . . . . . . Feedback Events . | . . . . . . . . . . . . . . . . . . . . . . . . Feedback Blocked . | . . . . . . . . . . . . . . . . . . . . . . . . Robot Schematics Acquired 5 | . . . . . . . . . . 5 . . . . . . . . . . . . . Robots Built 1 | . . . . . . . . . . . . 1 . . . . . . . . . . . Matter 318 | . . . . . . . . . . . . 318 . . . . . . . . . . . Time 56 | . . . . . . . . . . . . 56 . . . . . . . . . . . Total Robot Build Rating 6 | . . . . . . . . . . . . 6 . . . . . . . . . . . Part Schematics Acquired 4 | . . . . . . . . . . 4 . . . . . . . . . . . . . Parts Built . | . . . . . . . . . . . . . . . . . . . . . . . . Matter . | . . . . . . . . . . . . . . . . . . . . . . . . Time . | . . . . . . . . . . . . . . . . . . . . . . . . Total Part Build Rating . | . . . . . . . . . . . . . . . . . . . . . . . . Parts Repaired . | . . . . . . . . . . . . . . . . . . . . . . . . Time . | . . . . . . . . . . . . . . . . . . . . . . . . Parts Recycled . | . . . . . . . . . . . . . . . . . . . . . . . . Recycled Matter . | . . . . . . . . . . . . . . . . . . . . . . . . Retrieved Matter . | . . . . . . . . . . . . . . . . . . . . . . . . Retrieved Components . | . . . . . . . . . . . . . . . . . . . . . . . . Parts Scanalyzed . | . . . . . . . . . . . . . . . . . . . . . . . . Part Schematics Acquired . | . . . . . . . . . . . . . . . . . . . . . . . . Parts Damaged . | . . . . . . . . . . . . . . . . . . . . . . . . Bothacking | -11 -10 -9 -8 -7 -7 -7 -6 -6 -6 -6 -5 -5 -5 -5 -4 -4 -4 -4 -4 -3 -3 -2 -1 ------------ Run | Scr Mat Mat Mat Fac Was Fac Fac Low Low Dat Pro Fac Upp Upp Fac Ext Cet Arc Hub Res Qua Res Acc Used RIF Installer . | . . . . . . . . . . . . . . . . . . . . . . . . Robots Hacked . | . . . . . . . . . . . . . . . . . . . . . . . . Non-combat . | . . . . . . . . . . . . . . . . . . . . . . . . Combat . | . . . . . . . . . . . . . . . . . . . . . . . . Robot Hacks Applied . | . . . . . . . . . . . . . . . . . . . . . . . . Relay Couplers Released 3 | . . . . . . . . . . . . . . . . . . . . . . 2 1 Machine Destruction 2 | . . . . . . . . . . . . . . . . . . . . . . 2 . Programmers 1 | . . . . . . . . . . . . . . . . . . . . . . . 1 Robots Rewired 6 | . . . . . . . . 1 . . . . 4 . . . . . . . . . 1 Allies Hacked . | . . . . . . . . . . . . . . . . . . . . . . . . Hacks Repelled . | . . . . . . . . . . . . . . . . . . . . . . . . Allies | -11 -10 -9 -8 -7 -7 -7 -6 -6 -6 -6 -5 -5 -5 -5 -4 -4 -4 -4 -4 -3 -3 -2 -1 -------- Run | Scr Mat Mat Mat Fac Was Fac Fac Low Low Dat Pro Fac Upp Upp Fac Ext Cet Arc Hub Res Qua Res Acc Total Allies 17 | . . . . . . . . 1 . . 1 1 4 . . 8 . . 1 . . . 1 Largest Group 7 | . . . . . . . . 1 . . 1 2 6 6 6 7 2 . 1 . . . 1 Highest-Rated Group 437 | . . . . . . . . 30 . . 94 148 272 272 272 437 89 . 26 . . . 64 Highest-Rated Ally 156 | . . . . . . . . 30 . . 94 88 88 88 88 156 60 . 26 . . . 64 Total Orders . | . . . . . . . . . . . . . . . . . . . . . . . . Ally Attacks 136 | . . . . . . . . 5 . . 1 . 9 . 23 95 2 . . . . . 1 Total Damage 2711 | . . . . . . . . 34 . . . . 146 . 271 2209 30 . . . . . 21 Kills 13 | . . . . . . . . . . . . . 1 . 1 11 . . . . . . . Allies Corrupted . | . . . . . . . . . . . . . . . . . . . . . . . . Allies Melted . | . . . . . . . . . . . . . . . . . . . . . . . . Intel | -11 -10 -9 -8 -7 -7 -7 -6 -6 -6 -6 -5 -5 -5 -5 -4 -4 -4 -4 -4 -3 -3 -2 -1 ------- Run | Scr Mat Mat Mat Fac Was Fac Fac Low Low Dat Pro Fac Upp Upp Fac Ext Cet Arc Hub Res Qua Res Acc Robot Analysis Total 1 | . . . . . . . . . . . . . . . . 1 . . . . . . . Derelict Logs Recovered 2 | . . . . . . . . 1 1 . . . . . . . . . . . . . . Drone Launches . | . . . . . . . . . . . . . . . . . . . . . . . . Drone Recoveries . | . . . . . . . . . . . . . . . . . . . . . . . . Exploration | -11 -10 -9 -8 -7 -7 -7 -6 -6 -6 -6 -5 -5 -5 -5 -4 -4 -4 -4 -4 -3 -3 -2 -1 ------------- Run | Scr Mat Mat Mat Fac Was Fac Fac Low Low Dat Pro Fac Upp Upp Fac Ext Cet Arc Hub Res Qua Res Acc Turns Passed 19950 | 112 973 918 622 916 935 866 805 1247 719 143 550 501 699 80 403 1988 942 361 759 1934 551 1061 1865 Spaces Moved 9839 | 63 528 400 282 461 544 475 421 698 392 89 294 214 367 50 207 1055 435 198 326 809 295 459 777 Core 2 | 2 . . . . . . . . . . . . . . . . . . . . . . . Treads 9741 | 61 528 400 282 461 448 475 421 698 392 89 294 214 367 50 207 1055 435 198 326 809 295 459 777 Legs 96 | . . . . . 96 . . . . . . . . . . . . . . . . . . Wheels . | . . . . . . . . . . . . . . . . . . . . . . . . Hover . | . . . . . . . . . . . . . . . . . . . . . . . . Flight . | . . . . . . . . . . . . . . . . . . . . . . . . Fastest Speed 50 | 50 160 160 160 160 120 160 162 162 162 162 162 162 160 160 156 156 156 156 156 155 150 150 160 Average Speed 158 | 156 160 160 160 160 155 162 162 162 162 162 162 162 160 160 156 156 156 156 156 155 150 158 160 Slowest Speed 181 | 160 160 160 160 160 180 163 162 162 162 162 162 162 162 160 160 181 156 156 156 172 155 160 160 Overloaded Moves . | . . . . . . . . . . . . . . . . . . . . . . . . Propulsion Burnouts . | . . . . . . . . . . . . . . . . . . . . . . . . Robots Hopped . | . . . . . . . . . . . . . . . . . . . . . . . . Cave-ins Triggered . | . . . . . . . . . . . . . . . . . . . . . . . . Exploration Rate (%) 43 | 5 73 35 26 14 89 13 12 85 49 77 60 8 51 6 10 95 95 99 39 29 24 19 36 Regions Visited 23 Branch Regions 11 Pre-discovered Areas 2 | . . . . . . . . 1 . 1 . . . . . . . . . . . . . Known Exits Taken 21 | 1 1 1 1 . . 1 1 1 1 1 1 1 1 1 1 1 1 1 1 1 1 1 . Unknown Exits Taken . | . . . . . . . . . . . . . . . . . . . . . . . . Scrap Searched 8 | . . . . . . . . 3 1 . 1 . 2 1 . . . . . . . . . Spaces Dug 23 | . . . . . . . . . . . . . . . . 11 . . . 12 . . . Terrain Destroyed 564 | . 19 . . . . 33 . 9 12 . 10 8 9 . 29 94 9 17 202 30 8 15 60 Melee 12 | . . . . . . . . . . . . . . . . . . . . 12 . . . Projectile 327 | . . . . . . . . 9 12 . 10 8 9 . 5 94 9 17 53 18 8 15 60 AOE 225 | . 19 . . . . 33 . . . . . . . . 24 . . . 149 . . . . Terrain Rammed . | . . . . . . . . . . . . . . . . . . . . . . . . Walls Destroyed . | . . . . . . . . . . . . . . . . . . . . . . . . Machines Disabled . | . . . . . . . . . . . . . . . . . . . . . . . . Actions | -11 -10 -9 -8 -7 -7 -7 -6 -6 -6 -6 -5 -5 -5 -5 -4 -4 -4 -4 -4 -3 -3 -2 -1 --------- Run | Scr Mat Mat Mat Fac Was Fac Fac Low Low Dat Pro Fac Upp Upp Fac Ext Cet Arc Hub Res Qua Res Acc Total 12405 | 72 614 588 390 563 615 537 507 770 435 88 326 324 442 50 251 1194 555 222 462 1285 356 666 1093 Wait 862 | . 40 107 25 17 10 17 14 7 2 . 5 62 13 1 6 11 16 11 31 317 9 67 74 Move 9816 | 62 527 399 281 461 543 474 420 697 391 88 293 213 366 49 206 1054 434 197 325 808 294 458 776 Hop . | . . . . . . . . . . . . . . . . . . . . . . . . Pick Up 69 | . . 8 6 2 2 2 3 . 1 . . . 2 . 6 2 2 1 5 7 7 7 6 Fast Attach 94 | 10 7 4 6 6 18 5 8 2 4 . 1 1 1 . 3 1 . . 3 9 1 4 . Attach 16 | . . . . 4 4 1 1 . . . . . . . . 1 . . 1 . 2 2 . Detach 4 | . . 2 . . 1 . . . . . . . . . . 1 . . . . . . . Swap 43 | . 3 3 7 5 . 2 6 1 2 . . . 1 . 3 4 3 . 1 2 . . . Drop 148 | . 6 7 15 8 10 4 13 3 6 . 1 1 4 . 10 6 3 1 7 18 9 11 5 Fire 586 | . 22 41 26 21 11 13 20 16 17 . 16 13 11 . 14 66 53 9 34 34 11 44 94 Melee 188 | . . . . 13 . . . . . . . . 6 . 1 13 4 3 16 61 11 22 38 Ram . | . . . . . . . . . . . . . . . . . . . . . . . . Kick . | . . . . . . . . . . . . . . . . . . . . . . . . Crush 58 | . . . . 1 . 1 5 13 2 . 3 19 . . 2 4 3 . . . . . 5 Escape Stasis . | . . . . . . . . . . . . . . . . . . . . . . . . Rewire 15 | . . . . . . . . 1 . . . . 7 . . 2 . . . . . . 5 Trap . | . . . . . . . . . . . . . . . . . . . . . . . . Miscellaneous 506 | . 9 17 24 25 16 18 17 30 10 . 7 15 31 . . 29 37 . 39 29 12 51 90 Route ------- -11/Scrapyard -10/Materials (discovered 3 exits: *Mat x2 / *Min) -9/Materials (discovered 2 exits: *Mat / *Min) -8/Materials -7/Factory -7/Waste -7/Factory -6/Factory -6/Lower Caves -6/Lower Caves -6/Data Miner -5/Proximity Caves -5/Factory -5/Upper Caves -5/Upper Caves -4/Factory -4/Extension (discovered 3 exits: *Res x2 / *Cet) -4/Cetus (discovered 3 exits: *Res x2 / *Arc) -4/Archives (discovered 3 exits: *Res / *Hub x2) -4/Hub_04(d) (discovered 2 exits: *Res x2) -3/Research -3/Quarantine -2/Research -1/Access To Epsilon Eridani History --------- Turn | Location | Event 1 | -11/Scrapyard | Upgraded with Propulsion slot (x1) 1 | -11/Scrapyard | Upgraded with Utility slot (x1) 1 | -11/Scrapyard | Upgraded with Weapon slot (x1) 4 | -11/Scrapyard | Identified exit to Materials 4 | -11/Scrapyard | Discovered exit to Materials (range 16) 21 | -11/Scrapyard | Upgraded with Weapon slot (x1) 40 | -11/Scrapyard | Upgraded with Utility slot (x3) 113 | -11/Scrapyard | Entered Materials 229 | -10/Materials | Identified exit to Mines 229 | -10/Materials | Discovered exit to Mines (range 13) 303 | -10/Materials | Build established: Hacker-Gunner 765 | -10/Materials | Identified exit to Materials 765 | -10/Materials | Discovered exit to Materials (range 11) 970 | -10/Materials | Discovered exit to Materials (range 3) 1086 | -10/Materials | Entered another Materials area 1088 | -9/Materials | Reached level 2 1088 | -9/Materials | Reached level 3 1283 | -9/Materials | Reached level 4 1596 | -9/Materials | Build established: Hacker-Skirmisher 1677 | -9/Materials | Identified exit to Mines 1677 | -9/Materials | Discovered exit to Mines (range 11) 1820 | -9/Materials | Reached level 5 1824 | -9/Materials | Upgraded with Weapon slot (x1) 1930 | -9/Materials | Identified exit to Materials 1930 | -9/Materials | Discovered exit to Materials (range 14) 2004 | -9/Materials | Entered another Materials area 2006 | -8/Materials | Reached level 6 2006 | -8/Materials | Upgraded with Propulsion slot (x1) 2181 | -8/Materials | Reached level 7 2597 | -8/Materials | Identified exit to Factory 2597 | -8/Materials | Discovered exit to Factory (range 18) 2626 | -8/Materials | Entered Factory 2628 | -7/Factory | Reached level 8 2628 | -7/Factory | Reached level 9 2638 | -7/Factory | Upgraded with Propulsion slot (x1) 2638 | -7/Factory | Upgraded with Utility slot (x1) 2638 | -7/Factory | Upgraded with Weapon slot (x1) 2693 | -7/Factory | Reached level 10 2729 | -7/Factory | Upgraded with Power slot (x1) 2933 | -7/Factory | Build established: Scavenger-Gunner 2966 | -7/Factory | Identified exit to Lower Caves 2966 | -7/Factory | Discovered exit to Lower Caves (range 5) 3439 | -7/Factory | Build established: Scavenger-Assassin 3542 | -7/Factory | Sucked down chute 3542 | -7/Factory | Entered Waste 3542 | -7/Waste | The area was eerily silent 3750 | -7/Waste | A Compactor rumbled back to life 3750 | -7/Waste | Crushed by Compactor (1 part destroyed, 1 dropped) 3750 | -7/Waste | Spotted C-40 Crusher 3753 | -7/Waste | Crushed by Compactor (1 part destroyed, 2 dropped) 3756 | -7/Waste | Crushed by Compactor (1 part destroyed) 3766 | -7/Waste | Crushed by Compactor (1 part destroyed, 2 dropped) 3797 | -7/Waste | Lost 4 parts (2n1u1w) 3812 | -7/Waste | Crushed by Compactor (1 part destroyed, 1 dropped) 3855 | -7/Waste | Identified exit to Factory 3855 | -7/Waste | Discovered exit to Factory (range 12) 3876 | -7/Waste | Crushed by Compactor (0 parts destroyed, 1 dropped) 3881 | -7/Waste | Crushed by Compactor (1 part destroyed, 2 dropped) 3890 | -7/Waste | Crushed by Compactor (0 parts destroyed, 1 dropped) 3902 | -7/Waste | Crushed by Compactor (0 parts destroyed, 1 dropped) 3978 | -7/Waste | Destroyed C-40 Crusher 4464 | -7/Waste | Found Damper Plating 4477 | -7/Waste | Entered Factory 4494 | -7/Factory | Build established: Scavenger-Gunner 4819 | -7/Factory | Reached level 11 4829 | -7/Factory | Upgraded with Propulsion slot (x1) 5243 | -7/Factory | Build established: Hacker-Gunner 5332 | -7/Factory | Identified exit to Factory 5332 | -7/Factory | Discovered exit to Factory (range 8) 5343 | -7/Factory | Entered another Factory area 5345 | -6/Factory | Reached level 12 5345 | -6/Factory | Reached level 13 5345 | -6/Factory | Upgraded with Utility slot (x1) 5649 | -6/Factory | Build established: Hacker-Tank 6102 | -6/Factory | Identified exit to Lower Caves 6102 | -6/Factory | Discovered exit to Lower Caves (range 4) 6148 | -6/Factory | Entered Lower Caves 6150 | -6/Lower Caves | Reached level 14 6756 | -6/Lower Caves | Attracted the attention of an 0b10 outpost 7377 | -6/Lower Caves | Identified exit to Lower Caves 7377 | -6/Lower Caves | Discovered exit to Lower Caves (range 13) 7395 | -6/Lower Caves | Entered another Lower Caves area 7397 | -6/Lower Caves | Reached level 15 8000 | -6/Lower Caves | Encountered a Warlord checkpoint 8071 | -6/Lower Caves | Identified exit to Data Miner 8071 | -6/Lower Caves | Discovered exit to Data Miner (range 16) 8114 | -6/Lower Caves | Entered Data Miner 8114 | -6/Data Miner | Identified exit to Proximity Caves 8114 | -6/Data Miner | Discovered exit to Proximity Caves (range 6) 8116 | -6/Data Miner | Reached level 16 8140 | -6/Data Miner | Met Data Miner 8192 | -6/Data Miner | Learned location of Section 7 (-3) 8192 | -6/Data Miner | Acquired the access code to Warlord's prototype stash 8221 | -6/Data Miner | Received God Mode back door access code from Data Miner 8257 | -6/Data Miner | Entered Proximity Caves 8277 | -5/Proximity Caves | Escorted by Enhanced Grunt 8295 | -5/Proximity Caves | Reached level 17 8639 | -5/Proximity Caves | Spotted B-75 Beast 8664 | -5/Proximity Caves | Destroyed B-75 Beast 8729 | -5/Proximity Caves | Identified exit to Factory 8729 | -5/Proximity Caves | Discovered exit to Factory (range 15) 8807 | -5/Proximity Caves | Entered Factory 8807 | -5/Factory | Accompanied by 1 ally 8809 | -5/Factory | Reached level 18 9146 | -5/Factory | Fabricated I-47 Archangel (x1) 9219 | -5/Factory | Identified exit to Upper Caves 9219 | -5/Factory | Discovered exit to Upper Caves (range 15) 9308 | -5/Factory | Entered Upper Caves 9308 | -5/Upper Caves | Accompanied by 2 allies 9310 | -5/Upper Caves | Reached level 19 9595 | -5/Upper Caves | Spotted B-75 Beast 9597 | -5/Upper Caves | Destroyed B-75 Beast 9762 | -5/Upper Caves | Attacked by a delusional Derelict stockpiling Unaware 9943 | -5/Upper Caves | Reached level 20 9948 | -5/Upper Caves | Encountered a Warlord checkpoint 9969 | -5/Upper Caves | Identified exit to Upper Caves 9969 | -5/Upper Caves | Discovered exit to Upper Caves (range 19) 10007 | -5/Upper Caves | Entered another Upper Caves area 10007 | -5/Upper Caves | Accompanied by 6 allies 10009 | -5/Upper Caves | Identified exit to Factory 10009 | -5/Upper Caves | Discovered exit to Factory (range 17) 10087 | -5/Upper Caves | Entered Factory 10087 | -4/Factory | Accompanied by 6 allies 10088 | -4/Factory | Build established: Commander-Tank 10089 | -4/Factory | Reached level 21 10331 | -4/Factory | Garrison activated, responded to threat 10363 | -4/Factory | Reached level 22 10457 | -4/Factory | Identified exit to Extension 10457 | -4/Factory | Discovered exit to Extension (range 16) 10490 | -4/Factory | Entered Extension 10490 | -4/Extension | Accompanied by 2 allies 10492 | -4/Extension | Reached level 23 10577 | -4/Extension | Rescued a captive Derelict 10621 | -4/Extension | Rescued a captive Derelict 10633 | -4/Extension | Build established: Scavenger-Tank 10638 | -4/Extension | Rescued A7 10661 | -4/Extension | Rescued a captive Derelict 10680 | -4/Extension | Rescued a captive Derelict 10681 | -4/Extension | Rescued a captive Derelict 10815 | -4/Extension | Spotted B-86 Titan 10836 | -4/Extension | Spotted B-86 Titan 10853 | -4/Extension | Allies destroyed B-86 Titan 10858 | -4/Extension | Destroyed B-86 Titan 10890 | -4/Extension | Disrupted transfer network 10930 | -4/Extension | Destroyed 7 combat bots 10947 | -4/Extension | Reached level 24 10991 | -4/Extension | Destroyed 7 combat bots 11095 | -4/Extension | Rescued a captive Derelict 11097 | -4/Extension | Rescued a captive Derelict 11257 | -4/Extension | Incoming investigation squad redirected 11422 | -4/Extension | Identified exit to Research 11422 | -4/Extension | Discovered exit to Research (range 10) 11423 | -4/Extension | Identified exit to Cetus 11423 | -4/Extension | Discovered exit to Cetus (range 6) 11462 | -4/Extension | Disrupted transfer network 11628 | -4/Extension | Extracted ID and sensor layout for unrecognized location from A7's data core 11683 | -4/Extension | Discovered exit to Research (range 3) 12332 | -4/Extension | Reached level 25 12478 | -4/Extension | Entered Cetus 12478 | -4/Cetus | Accompanied by 2 allies 12496 | -4/Cetus | Spotted Cetus Guard 12496 | -4/Cetus | Spotted Cetus Guard 12498 | -4/Cetus | Spotted Cetus Guard 12514 | -4/Cetus | Destroyed Cetus Guard 12518 | -4/Cetus | Destroyed Cetus Guard 12523 | -4/Cetus | Spotted Cetus Guard 12533 | -4/Cetus | Destroyed Cetus Guard 12537 | -4/Cetus | Destroyed Cetus Guard 12608 | -4/Cetus | Destroyed 8 combat bots 12709 | -4/Cetus | Incoming investigation squad redirected 12965 | -4/Cetus | Discovered exit to Research (range 18) 13084 | -4/Cetus | Cetus Manufacturing Module disabled 13087 | -4/Cetus | Destroyed 8 combat bots 13144 | -4/Cetus | Identified exit to Archives 13144 | -4/Cetus | Discovered exit to Archives (range 18) 13180 | -4/Cetus | Spotted Cetus Guard 13180 | -4/Cetus | Spotted Cetus Guard 13189 | -4/Cetus | Destroyed Cetus Guard 13190 | -4/Cetus | Spotted Cetus Guard 13196 | -4/Cetus | Spotted Cetus Guard 13204 | -4/Cetus | Destroyed Cetus Guard 13211 | -4/Cetus | Destroyed Cetus Guard 13222 | -4/Cetus | Destroyed Cetus Guard 13243 | -4/Cetus | Discovered exit to Research (range 18) 13256 | -4/Cetus | Met Revision 17 13420 | -4/Cetus | Entered Archives 13422 | -4/Archives | Reached level 26 13530 | -4/Archives | Unable to access archive contents 13531 | -4/Archives | Identified exit to Hub_04(d) 13531 | -4/Archives | Discovered exit to Hub_04(d) (range 17) 13545 | -4/Archives | Unable to access archive contents 13547 | -4/Archives | Discovered exit to Hub_04(d) (range 16) 13562 | -4/Archives | Discovered exit to Research (range 19) 13570 | -4/Archives | Unable to access archive contents 13781 | -4/Archives | Entered Hub_04(d) 13845 | -4/Hub_04(d) | Discovered exit to Research (range 16) 14156 | -4/Hub_04(d) | Garrison activated, responded to threat 14212 | -4/Hub_04(d) | Destroyed 9 combat bots 14261 | -4/Hub_04(d) | Incoming assault squad redirected 14437 | -4/Hub_04(d) | Discovered exit to Research (range 16) 14525 | -4/Hub_04(d) | Network Hub disabled 14531 | -4/Hub_04(d) | First assault squad dispatched 14540 | -4/Hub_04(d) | Entered Research 14542 | -3/Research | Reached level 27 14560 | -3/Research | Found Prototype Processor 14561 | -3/Research | Identified Spectral Analyzer 15370 | -3/Research | Reached level 28 15683 | -3/Research | Spotted B-86 Titan 15755 | -3/Research | Destroyed B-86 Titan 15901 | -3/Research | Spotted B-86 Titan 16040 | -3/Research | First assault squad dispatched 16064 | -3/Research | Incoming assault squad redirected 16079 | -3/Research | Found Prototype Device 16079 | -3/Research | Identified Imp. Particle Accelerator 16465 | -3/Research | Identified exit to Quarantine 16465 | -3/Research | Discovered exit to Quarantine (range 7) 16474 | -3/Research | Entered Quarantine 16476 | -3/Quarantine | Reached level 29 16477 | -3/Quarantine | Upgraded with Utility slot (x1) 16680 | -3/Quarantine | Identified exit to Research 16680 | -3/Quarantine | Discovered exit to Research (range 14) 16721 | -3/Quarantine | Found Alien Artifact 16793 | -3/Quarantine | Identified Matter Drive 16878 | -3/Quarantine | Found Alien Impact Weapon 16948 | -3/Quarantine | Identified Core Stripper 17025 | -3/Quarantine | Entered Research 17027 | -2/Research | Reached level 30 17037 | -2/Research | Upgraded with Propulsion slot (x1) 17100 | -2/Research | Spotted B-90 Cyclops 17166 | -2/Research | Destroyed B-90 Cyclops 17368 | -2/Research | Reached level 31 17495 | -2/Research | Build established: Hacker-Gladiator 17725 | -2/Research | Incoming investigation squad redirected 18053 | -2/Research | Identified exit to Access 18053 | -2/Research | Discovered exit to Access (range 10) 18077 | -2/Research | Upgraded with Weapon slot (x1) 18086 | -2/Research | Entered Access 18088 | -1/Access | Reached level 32 18271 | -1/Access | Reached level 33 18601 | -1/Access | Garrison activated, responded to threat 18661 | -1/Access | Destroyed 12 combat bots 18810 | -1/Access | Reached level 34 19229 | -1/Access | Destroyed 11 combat bots 19336 | -1/Access | First assault squad dispatched 19422 | -1/Access | Spotted B-99 Colossus 19498 | -1/Access | Destroyed B-99 Colossus 19589 | -1/Access | Spotted B-99 Colossus 19610 | -1/Access | Spotted B-99 Colossus 19869 | -1/Access | Reached level 35 19943 | -1/Access | Identified exit to Surface 19943 | -1/Access | Discovered exit to Surface (range 6) 19951 | *** | Escaped! Last Messages --------------- 19869_ Slug penetrates Wall. 19869_ Reached level 35. 19869_ A-15 Conveyor destroyed. 19870_ Acquired 22 matter. 19872_ Slug penetrates S-43 Plague. 19872_ S-43 Plague knocked back. 19872_ U-05 Engineer destroyed. 19873_ Acquired 22 matter. 19876_ Slug penetrates S-43 Plague. 19876_ S-43 Plague destroyed. 19876_ Slug penetrates Wall. 19877_ Acquired 22 matter. 19884_ W-44 Eye sundered. 19884_ W-44 Eye destroyed. 19889_ Upgraded: Melee Accuracy (+30) 19938_ Connecting with Terminal... >>Open Sealed Barrier opened. 19943_ The Access Shell folds into the floor. 19943_ EXIT=FOUND: SURFACE Map ----- +----------------------------------------------------+ | ???######"#######+##### # ""T"" #???????# | | ???# # # #???????# | | ???# ! # # #???????# | | ???+ """"" # # " #????##### | | ???# """""""" # # """ ###### | | ???# """""""" # # """ + + | | ???# """"" # + " ###### "" | | ???+ * # # #????# "" | | ???# # # #????# | | ???### "" "T"""" ###### ##############????# | | ?????#""" """""""#???? ?????????????????##### | | ?????#########?###???? ?????????????????????? | | ?????????????????????? ????????????????????? | | ?????????????????????? ????????????????????? | | ?????????????????????? ? ????????????????????? | | ???????????????????????? ??????????????????????? | | ?????????????????????????????????????????????????? | | ?????????????????????????????????????????????????? | | ?????????????????????????????????????????????????? | | ?????????????????????????????????????????????????? | | ???????????????????#""""""""""#??????????????????? | | ???????????????????# #??????????????????? | | ???????????????????# #??????????????????? | | ???????????????????# #??????????????????? | | ???????????????????# "" #??????????????????? | | ???????????????????# "@ #??????????????????? | | ???????????????????# #??????????????????? | | ???????????????????# #??????????????????? | | ???????????????????# #??????????????????? | | ??????????????????## ##?????????????????? | | ??????????????????# #?????????????????# | | ??????????????????##"" ##?????????????????? | | ???????????????????#"" #??????????????????? | | ???????????????????#"" #??????????????????? | | ???????????????????#T #??????????????????? | | ???????????????????#"" #??????????????????? | | ???????????????????#"" #??????????????????? | | ????????????##+#####"" #################### | | ??????? !! | | ??????? %=* | | ????????######+####################+############## | | ????????????????????????????????# #??# [ | | ????????????????????????????????# #??# | | ????????????????????????????????# #??# | | ????????????????????????????????# #??# | | ????????????????????????????????# #??# = | | ????????????????????????????????# #? "=%= | | ????????????????????????????????# ##"# [%= | | ????????????????????????????????# # #"*|! | | ????????????????????????????????#############" | +----------------------------------------------------+ Best States ------------- Heat Dissipation 94 Energy Generation 51 Energy Capacity 950 Matter Stores 950 Matter Capacity 950 Sight Range 29 Robot Scan Range 13 Terrain Scan Range 14 Terrain Scan Density 410 EM Shielding 2 Armor Coverage 3600 Resistance: KI 55 Resistance: TH 55 Resistance: EX 55 Resistance: EM 100 Resistance: I 35 Resistance: S 35 Resistance: P 35 Utility Shielding 66 Weapon Shielding 33 Evasion (%) 40 Targeting Accuracy 12 Core Analysis 6 Armor Integrity Analysis 66 Recoil Reduction 6 Offensive Hacking 40 Item Schematics ----------------- Combat Drone Bay | -6/Data Miner | Free Lgt. Regenerative Plating | -6/Data Miner | Free Exp. Cesium-ion Thruster | -6/Data Miner | Free Exp. Terrain Scanner | -6/Data Miner | Free Robot Schematics ------------------ S-27 Virus | -6/Data Miner | Free G-50 Soldier | -6/Data Miner | Free P-70 Sage | -6/Data Miner | Free I-36 Angel | -6/Data Miner | Free I-47 Archangel | -6/Data Miner | Free Fabricated ------------ I-47 Archangel | x1 | -5/Factory Alien Tech Used ----------------- Core Stripper Achievements -------------- Giant Slayer Preemptive Strike Prison Break Remodeling Revising The Future Safety First Sunderer Challenges ------------ None RPGLIKE | -11 -10 -9 -8 -7 -7 -7 -6 -6 -6 -6 -5 -5 -5 -5 -4 -4 -4 -4 -4 -3 -3 -2 -1 --------- Run | Scr Mat Mat Mat Fac Was Fac Fac Low Low Dat Pro Fac Upp Upp Fac Ext Cet Arc Hub Res Qua Res Acc Levels Raised 34 | . . 4 2 3 . 1 2 1 1 1 1 1 2 . 2 3 . 1 . 2 1 2 4 XP Earned 57059 | 6000 955 5258 3761 4551 200 935 3433 1800 1250 650 1740 2320 1770 349 3161 3961 1327 262 1083 3083 878 2993 5339 XP Spent 56645 | 5600 . 6295 1600 5950 . 1550 2950 1495 1450 1300 1700 1500 1600 . 2850 6105 . 1425 . 1600 2300 3400 5975 Upgrades 122 | 7 . 28 5 10 . 2 5 10 6 2 2 3 3 . 5 12 . 3 . 2 1 2 14 Power Slot 1 | . . . . 1 . . . . . . . . . . . . . . . . . . . Propulsion Slot 5 | 1 . . 1 1 . 1 . . . . . . . . . . . . . . . 1 . Utility Slot 7 | 4 . . . 1 . . 1 . . . . . . . . . . . . . 1 . . Weapon Slot 5 | 2 . 1 . 1 . . . . . . . . . . . . . . . . . 1 . Core Integrity 18 | . . 9 . . . . . 9 . . . . . . . . . . . . . . . Heat Dissipation 11 | . . 7 . . . . 2 . . . . . . . . 2 . . . . . . . Energy Generation 3 | . . . . . . . . . . . . . . . . . . . . . . . 3 Energy Storage 8 | . . . . . . . . . 1 . . . . . . 2 . . . . . . 5 Matter Storage 13 | . . . . . . . . . 5 . . . 1 . . 4 . 3 . . . . . Mass Support 1 | . . . . . . . . 1 . . . . . . . . . . . . . . . Inventory Capacity 4 | . . 4 . . . . . . . . . . . . . . . . . . . . . Sight Range 5 | . . 3 . . . . . . . . . . . . . . . . . 2 . . . Sensor Range 6 | . . . . 4 . 1 . . . . . . 1 . . . . . . . . . . Terrain Scan Density 4 | . . 4 . . . . . . . . . . . . . . . . . . . . . Ranged Accuracy 9 | . . . . 2 . . . . . 2 2 . . . . 3 . . . . . . . Melee Accuracy 6 | . . . . . . . . . . . . . . . . . . . . . . . 6 KI Resistance % 4 | . . . 2 . . . . . . . . . . . 2 . . . . . . . . TH Resistance % 4 | . . . 1 . . . 1 . . . . . . . 2 . . . . . . . . EX Resistance % 4 | . . . 1 . . . 1 . . . . . . . 1 1 . . . . . . . KI Damage % 4 | . . . . . . . . . . . . 3 1 . . . . . . . . . . Protomatter Created 6012 | . 131 173 117 212 100 139 117 209 56 . 48 111 328 . 100 674 281 . 318 650 192 460 1596 Integrity Restored 9912 | . 151 332 503 514 352 344 333 606 155 . 144 304 611 . . 528 728 . 770 462 243 1063 1769 Core 4915 | . 99 192 363 348 190 71 125 214 26 . 144 145 89 . . 281 357 . 335 243 119 568 1006 Parts 4997 | . 52 140 140 166 162 273 208 392 129 . . 159 522 . . 247 371 . 435 219 124 495 763 Protomatter Decayed 3020 | . 42 2 . . 290 . 21 . 19 . . 7 58 . 193 642 111 . 93 483 161 29 869 Game ------ Seed OverloadMetafiberExpander Manual? 0 Play Time 03:44:19 Cumulative 35.4 hours Start 2021.12.11 @ 17:46:32 End 2021.12.11 @ 22:59:45 Sessions 1 Manual Loads 0 Difficulty Explorer Special Mode Winter2019/RPGLIKE Game No. 41 Rogue 15 Adventurer 15 Explorer 11 Win Type 0 Total 2 Types 2/0/0/0/0/0/0/0/0 Lore% 40 Gallery% 43 Achievement% 37 Wizard Run 0 Options --------- ASCII 0 Keyboard 0 Movement Numpad Keybinds 0 Fullscreen 2 Font 18/SmallcapsGlow Map View 76x50 Tactical HUD 1 Map Filters NONE Filters NONE Steam 1 RUN: 71e74474-0f36-44bf-ab6b-798dd15b7d61